[Event "December 5 Early 2023"]
[Site "https://www.chess.com"]
[Date "2023.12.05"]
[Round "3"]
[White "Gokerkan, Cem Kaan"]
[Black "Lewicki, Miroslaw"]
[Result "1/2-1/2"]
[Board "77"]
[TimeControl "180+1"]
[WhiteFideId "6336760"]
[BlackFideId "1113380"]
[WhiteElo "2868"]
[BlackElo "2534"]
[WhiteTeam "TUR"]
[BlackTeam "POL"]
[WhiteClock "0:00:20"]
[BlackClock "0:00:20"]

1. e4 {[%clk 0:03:00]}  c5 {[%clk 0:02:57]} 2. Nf3 {[%clk 0:03:01]}  d6 {[%clk 0:02:58]} 3. d4 {[%clk 0:03:01]}  cxd4 {[%clk 0:02:59]} 4. Nxd4 {[%clk 0:03:02]}  Nf6 {[%clk 0:02:59]} 5. Nc3 {[%clk 0:03:03]}  a6 {[%clk 0:02:59]} 6. Bc4 {[%clk 0:03:03]}  Qc7 {[%clk 0:02:58]} 7. Bb3 {[%clk 0:03:02]}  b5 {[%clk 0:02:58]} 8. O-O {[%clk 0:02:57]}  Bb7 {[%clk 0:02:58]} 9. Nd5 {[%clk 0:02:57]}  Nxd5 {[%clk 0:02:57]} 10. exd5 {[%clk 0:02:57]}  Nd7 {[%clk 0:02:46]} 11. Re1 {[%clk 0:02:48]}  g6 {[%clk 0:02:46]} 12. Bg5 {[%clk 0:02:35]}  h6 {[%clk 0:02:42]} 13. Bh4 {[%clk 0:02:35]}  Nb6 {[%clk 0:02:24]} 14. Qf3 {[%clk 0:02:17]}  Nc4 {[%clk 0:01:53]} 15. Bf6 {[%clk 0:01:40]}  Rh7 {[%clk 0:01:31]} 16. a4 {[%clk 0:01:39]}  Nd2 {[%clk 0:01:20]} 17. Qd3 {[%clk 0:01:14]}  Nxb3 {[%clk 0:01:18]} 18. cxb3 {[%clk 0:01:14]}  Bxd5 {[%clk 0:01:14]} 19. Nxb5 {[%clk 0:01:10]}  axb5 {[%clk 0:01:02]} 20. Qxd5 {[%clk 0:01:10]}  Rb8 {[%clk 0:00:58]} 21. axb5 {[%clk 0:01:06]}  e6 {[%clk 0:00:57]} 22. Qd3 {[%clk 0:00:56]}  Be7 {[%clk 0:00:52]} 23. Bd4 {[%clk 0:00:56]}  e5 {[%clk 0:00:45]} 24. Be3 {[%clk 0:00:55]}  f5 {[%clk 0:00:44]} 25. Rec1 {[%clk 0:00:46]}  Qb7 {[%clk 0:00:43]} 26. Ra7 {[%clk 0:00:45]}  Qxb5 {[%clk 0:00:40]} 27. Qxb5+ {[%clk 0:00:41]}  Rxb5 {[%clk 0:00:40]} 28. Rc8+ {[%clk 0:00:42]}  Kf7 {[%clk 0:00:41]} 29. Rxe7+ {[%clk 0:00:42]}  Kxe7 {[%clk 0:00:32]} 30. Rc7+ {[%clk 0:00:42]}  Kf6 {[%clk 0:00:25]} 31. Rxh7 {[%clk 0:00:43]}  f4 {[%clk 0:00:26]} 32. Bd2 {[%clk 0:00:32]}  Rxb3 {[%clk 0:00:26]} 33. Bc3 {[%clk 0:00:32]}  d5 {[%clk 0:00:26]} 34. Rd7 {[%clk 0:00:14]}  d4 {[%clk 0:00:26]} 35. Bxd4 {[%clk 0:00:14]}  exd4 {[%clk 0:00:26]} 36. Rxd4 {[%clk 0:00:15]}  Rxb2 {[%clk 0:00:19]} 37. Rxf4+ {[%clk 0:00:16]}  Kg5 {[%clk 0:00:20]} 38. g3 {[%clk 0:00:16]}  h5 {[%clk 0:00:19]} 39. Kg2 {[%clk 0:00:16]}  Ra2 {[%clk 0:00:18]} 40. Rb4 {[%clk 0:00:16]}  Rc2 {[%clk 0:00:17]} 41. h4+ {[%clk 0:00:16]}  Kh6 {[%clk 0:00:17]} 42. Rf4 {[%clk 0:00:17]}  Ra2 {[%clk 0:00:17]} 43. Kf3 {[%clk 0:00:17]}  Ra3+ {[%clk 0:00:18]} 44. Ke4 {[%clk 0:00:18]}  Ra4+ {[%clk 0:00:18]} 45. Kd5 {[%clk 0:00:18]}  Ra5+ {[%clk 0:00:19]} 46. Ke6 {[%clk 0:00:19]}  Ra6+ {[%clk 0:00:19]} 47. Kd5 {[%clk 0:00:19]}  Ra5+ {[%clk 0:00:20]} 48. Kc6 {[%clk 0:00:20]}  Ra6+ {[%clk 0:00:20]} 49. Kb5 {[%clk 0:00:20]}  Ra2 {[%clk 0:00:20]} 50. Kc5 {[%clk 0:00:20]}  Ra5+ {[%clk 0:00:20]} 51. Kc4 {[%clk 0:00:20]}  Ra4+ {[%clk 0:00:20]} 52. Kd5 {[%clk 0:00:20]}  Ra5+ {[%clk 0:00:20]} 1/2-1/2

[Event "December 5 Early 2023"]
[Site "https://www.chess.com"]
[Date "2023.12.05"]
[Round "3"]
[White "Gharibyan, Mamikon"]
[Black "Korchynskyi, Mykola"]
[Result "1-0"]
[Board "80"]
[TimeControl "180+1"]
[WhiteFideId "13308300"]
[BlackFideId "34138005"]
[WhiteElo "2824"]
[BlackElo "2532"]
[WhiteTeam "ARM"]
[BlackTeam "UKR"]
[WhiteClock "0:00:18"]
[BlackClock "0:00:03"]

1. e4 {[%clk 0:03:00]}  e6 {[%clk 0:02:49]} 2. d4 {[%clk 0:03:00]}  d5 {[%clk 0:02:50]} 3. e5 {[%clk 0:03:00]}  c5 {[%clk 0:02:42]} 4. c3 {[%clk 0:03:01]}  Nc6 {[%clk 0:02:43]} 5. Nf3 {[%clk 0:03:01]}  Qb6 {[%clk 0:02:43]} 6. a3 {[%clk 0:03:00]}  Nh6 {[%clk 0:02:43]} 7. b4 {[%clk 0:02:39]}  cxd4 {[%clk 0:02:42]} 8. cxd4 {[%clk 0:02:40]}  Nf5 {[%clk 0:02:42]} 9. Be3 {[%clk 0:02:34]}  Nxe3 {[%clk 0:02:42]} 10. fxe3 {[%clk 0:02:35]}  g6 {[%clk 0:02:42]} 11. Bd3 {[%clk 0:02:31]}  Bh6 {[%clk 0:02:42]} 12. Qe2 {[%clk 0:02:29]}  O-O {[%clk 0:02:42]} 13. O-O {[%clk 0:02:28]}  Bd7 {[%clk 0:02:41]} 14. Nc3 {[%clk 0:02:26]}  Rac8 {[%clk 0:02:34]} 15. Nd1 {[%clk 0:02:26]}  Ne7 {[%clk 0:02:31]} 16. Nf2 {[%clk 0:02:25]}  Nf5 {[%clk 0:02:24]} 17. Ng4 {[%clk 0:02:24]}  Bg7 {[%clk 0:02:25]} 18. Nf6+ {[%clk 0:02:21]}  Bxf6 {[%clk 0:02:24]} 19. exf6 {[%clk 0:02:22]}  a6 {[%clk 0:02:10]} 20. g4 {[%clk 0:02:10]}  Nd6 {[%clk 0:02:04]} 21. Ne5 {[%clk 0:02:09]}  Bb5 {[%clk 0:02:04]} 22. Bxb5 {[%clk 0:01:55]}  Qxb5 {[%clk 0:02:03]} 23. Qf2 {[%clk 0:01:46]}  h6 {[%clk 0:01:39]} 24. Rac1 {[%clk 0:01:21]}  Kh7 {[%clk 0:01:26]} 25. Rc5 {[%clk 0:01:15]}  Qa4 {[%clk 0:01:18]} 26. Rfc1 {[%clk 0:00:59]}  Ne4 {[%clk 0:01:05]} 27. Rxc8 {[%clk 0:00:52]}  Rxc8 {[%clk 0:00:59]} 28. Rxc8 {[%clk 0:00:44]}  Qd1+ {[%clk 0:00:16]} 29. Qf1 {[%clk 0:00:41]}  Qd2 {[%clk 0:00:14]} 30. Nxf7 {[%clk 0:00:35]}  Qxe3+ {[%clk 0:00:14]} 31. Kh1 {[%clk 0:00:32]}  Nf2+ {[%clk 0:00:14]} 32. Kg2 {[%clk 0:00:22]}  Qe4+ {[%clk 0:00:14]} 33. Kxf2 {[%clk 0:00:22]}  Qxd4+ {[%clk 0:00:11]} 34. Kg3 {[%clk 0:00:19]}  Qe3+ {[%clk 0:00:08]} 35. Kg2 {[%clk 0:00:19]}  Qe4+ {[%clk 0:00:04]} 36. Qf3 {[%clk 0:00:19]}  Qc2+ {[%clk 0:00:03]} 37. Rxc2 {[%clk 0:00:18]} 1-0

[Event "December 5 Early 2023"]
[Site "https://www.chess.com"]
[Date "2023.12.05"]
[Round "3"]
[White "Molina, Roberto Junio Brito"]
[Black "Derjabin, Ilja"]
[Result "1-0"]
[Board "81"]
[TimeControl "180+1"]
[WhiteFideId "2109450"]
[BlackFideId "14104768"]
[WhiteElo "2819"]
[BlackElo "2530"]
[WhiteTeam "BRA"]
[BlackTeam "UKR"]
[WhiteClock "0:00:09"]
[BlackClock "0:00:00"]

1. e4 {[%clk 0:03:00]}  e6 {[%clk 0:01:51]} 2. d4 {[%clk 0:03:00]}  d5 {[%clk 0:01:49]} 3. Nc3 {[%clk 0:03:00]}  Nf6 {[%clk 0:01:48]} 4. e5 {[%clk 0:03:00]}  Ne4 {[%clk 0:01:49]} 5. Nxe4 {[%clk 0:02:58]}  dxe4 {[%clk 0:01:49]} 6. Be3 {[%clk 0:02:56]}  c5 {[%clk 0:01:49]} 7. dxc5 {[%clk 0:02:56]}  Nd7 {[%clk 0:01:49]} 8. b4 {[%clk 0:02:47]}  a5 {[%clk 0:01:46]} 9. a3 {[%clk 0:02:44]}  Qc7 {[%clk 0:01:37]} 10. f4 {[%clk 0:02:40]}  axb4 {[%clk 0:01:11]} 11. axb4 {[%clk 0:02:38]}  Rxa1 {[%clk 0:01:11]} 12. Qxa1 {[%clk 0:02:39]}  b6 {[%clk 0:01:11]} 13. Nh3 {[%clk 0:01:57]}  bxc5 {[%clk 0:01:08]} 14. b5 {[%clk 0:01:57]}  Be7 {[%clk 0:01:04]} 15. Be2 {[%clk 0:01:55]}  Nb6 {[%clk 0:00:59]} 16. c4 {[%clk 0:01:54]}  O-O {[%clk 0:00:57]} 17. O-O {[%clk 0:01:54]}  Bb7 {[%clk 0:00:57]} 18. Qc3 {[%clk 0:01:47]}  Rd8 {[%clk 0:00:44]} 19. Qc2 {[%clk 0:01:45]}  Ra8 {[%clk 0:00:40]} 20. Nf2 {[%clk 0:01:34]}  Ra3 {[%clk 0:00:34]} 21. Bc1 {[%clk 0:01:34]}  Ra1 {[%clk 0:00:19]} 22. Nxe4 {[%clk 0:01:32]}  f5 {[%clk 0:00:14]} 23. exf6 {[%clk 0:01:29]}  gxf6 {[%clk 0:00:14]} 24. Bd2 {[%clk 0:01:07]}  Rxf1+ {[%clk 0:00:12]} 25. Kxf1 {[%clk 0:01:04]}  Qd8 {[%clk 0:00:06]} 26. Be3 {[%clk 0:01:01]}  Na4 {[%clk 0:00:04]} 27. Bf3 {[%clk 0:00:47]}  Bxe4 {[%clk 0:00:03]} 28. Bxe4 {[%clk 0:00:47]}  Nb6 {[%clk 0:00:03]} 29. Bxh7+ {[%clk 0:00:46]}  Kg7 {[%clk 0:00:03]} 30. Qg6+ {[%clk 0:00:40]}  Kh8 {[%clk 0:00:04]} 31. Qh5 {[%clk 0:00:27]}  Kg7 {[%clk 0:00:02]} 32. Bc2 {[%clk 0:00:24]}  f5 {[%clk 0:00:02]} 33. Qe2 {[%clk 0:00:21]}  Bf6 {[%clk 0:00:01]} 34. Bxc5 {[%clk 0:00:19]}  Qc7 {[%clk 0:00:02]} 35. Be3 {[%clk 0:00:16]}  Nxc4 {[%clk 0:00:01]} 36. Bc1 {[%clk 0:00:15]}  Nb6 {[%clk 0:00:01]} 37. g3 {[%clk 0:00:13]}  Nd5 {[%clk 0:00:00]} 38. Ba3 {[%clk 0:00:09]} 1-0

[Event "December 5 Early 2023"]
[Site "https://www.chess.com"]
[Date "2023.12.05"]
[Round "3"]
[White "Yeremyan, Alen"]
[Black "Baches Garcia, Guillermo"]
[Result "1-0"]
[Board "82"]
[TimeControl "180+1"]
[WhiteFideId "13308998"]
[BlackFideId "2209764"]
[WhiteElo "2805"]
[BlackElo "2530"]
[WhiteTeam "ARM"]
[BlackTeam "ESP"]
[WhiteClock "0:01:18"]
[BlackClock "0:00:00"]

1. Nf3 {[%clk 0:02:58]}  d5 {[%clk 0:02:59]} 2. g3 {[%clk 0:02:59]}  Nf6 {[%clk 0:02:59]} 3. Bg2 {[%clk 0:03:00]}  c6 {[%clk 0:02:58]} 4. O-O {[%clk 0:03:00]}  Bg4 {[%clk 0:02:59]} 5. d4 {[%clk 0:03:01]}  e6 {[%clk 0:02:59]} 6. c4 {[%clk 0:03:02]}  Nbd7 {[%clk 0:02:57]} 7. Nfd2 {[%clk 0:03:01]}  Be7 {[%clk 0:02:53]} 8. Nc3 {[%clk 0:03:01]}  O-O {[%clk 0:02:53]} 9. Qb3 {[%clk 0:03:01]}  Rb8 {[%clk 0:02:39]} 10. e4 {[%clk 0:03:00]}  dxc4 {[%clk 0:02:39]} 11. Nxc4 {[%clk 0:02:58]}  Nb6 {[%clk 0:02:39]} 12. Bf4 {[%clk 0:02:57]}  Rc8 {[%clk 0:02:34]} 13. h3 {[%clk 0:02:55]}  Bh5 {[%clk 0:02:30]} 14. Be3 {[%clk 0:02:44]}  Nxc4 {[%clk 0:02:23]} 15. Qxc4 {[%clk 0:02:44]}  Bg6 {[%clk 0:02:22]} 16. a4 {[%clk 0:02:39]}  a5 {[%clk 0:02:19]} 17. Rad1 {[%clk 0:02:36]}  Bb4 {[%clk 0:02:18]} 18. f3 {[%clk 0:02:33]}  Qc7 {[%clk 0:02:06]} 19. Bf2 {[%clk 0:02:32]}  Nh5 {[%clk 0:02:01]} 20. Kh2 {[%clk 0:02:31]}  Bd6 {[%clk 0:01:57]} 21. e5 {[%clk 0:02:28]}  Bb4 {[%clk 0:01:57]} 22. Ne4 {[%clk 0:02:28]}  Rce8 {[%clk 0:01:40]} 23. Be3 {[%clk 0:02:24]}  f5 {[%clk 0:01:39]} 24. Ng5 {[%clk 0:02:15]}  h6 {[%clk 0:01:21]} 25. Nxe6 {[%clk 0:01:48]}  Qf7 {[%clk 0:01:21]} 26. f4 {[%clk 0:01:47]}  Rxe6 {[%clk 0:01:10]} 27. d5 {[%clk 0:01:46]}  cxd5 {[%clk 0:01:06]} 28. Bxd5 {[%clk 0:01:45]}  Rfe8 {[%clk 0:01:07]} 29. g4 {[%clk 0:01:44]}  fxg4 {[%clk 0:00:50]} 30. hxg4 {[%clk 0:01:38]}  Nf6 {[%clk 0:00:49]} 31. exf6 {[%clk 0:01:35]}  Qxf6 {[%clk 0:00:49]} 32. f5 {[%clk 0:01:26]}  Kh8 {[%clk 0:00:00]} 33. fxe6 {[%clk 0:01:18]} 1-0

[Event "December 5 Early 2023"]
[Site "https://www.chess.com"]
[Date "2023.12.05"]
[Round "3"]
[White "IM_ArthurDW08"]
[Black "Dauner, Benedikt"]
[Result "1-0"]
[Board "83"]
[TimeControl "180+1"]
[BlackFideId "16225899"]
[WhiteElo "2804"]
[BlackElo "2529"]
[BlackTeam "GER"]
[WhiteClock "0:00:32"]
[BlackClock "0:00:32"]

1. e4 {[%clk 0:03:00]}  c5 {[%clk 0:02:57]} 2. Nf3 {[%clk 0:03:01]}  Nf6 {[%clk 0:02:58]} 3. e5 {[%clk 0:03:00]}  Nd5 {[%clk 0:02:58]} 4. Nc3 {[%clk 0:03:01]}  e6 {[%clk 0:02:58]} 5. Ne4 {[%clk 0:03:01]}  f5 {[%clk 0:02:56]} 6. Nc3 {[%clk 0:03:02]}  Ne7 {[%clk 0:02:51]} 7. Nb5 {[%clk 0:02:58]}  Ng8 {[%clk 0:02:51]} 8. d4 {[%clk 0:02:35]}  a6 {[%clk 0:02:51]} 9. Nd6+ {[%clk 0:02:35]}  Bxd6 {[%clk 0:02:51]} 10. exd6 {[%clk 0:02:35]}  cxd4 {[%clk 0:02:51]} 11. Qxd4 {[%clk 0:02:35]}  Nf6 {[%clk 0:02:52]} 12. Bf4 {[%clk 0:02:26]}  O-O {[%clk 0:02:51]} 13. O-O-O {[%clk 0:02:22]}  Nc6 {[%clk 0:02:49]} 14. Qd3 {[%clk 0:02:04]}  Qa5 {[%clk 0:02:46]} 15. Kb1 {[%clk 0:02:02]}  Ne4 {[%clk 0:02:26]} 16. Be3 {[%clk 0:01:48]}  b5 {[%clk 0:02:10]} 17. Nd2 {[%clk 0:01:45]}  Nb4 {[%clk 0:02:01]} 18. Qb3 {[%clk 0:01:40]}  Bb7 {[%clk 0:01:57]} 19. a3 {[%clk 0:01:24]}  Nd5 {[%clk 0:01:10]} 20. Nxe4 {[%clk 0:01:01]}  fxe4 {[%clk 0:01:11]} 21. Bd4 {[%clk 0:00:58]}  Rac8 {[%clk 0:00:58]} 22. c4 {[%clk 0:00:50]}  bxc4 {[%clk 0:00:32]} 23. Qxb7 {[%clk 0:00:39]}  Rb8 {[%clk 0:00:32]} 24. Qxd7 {[%clk 0:00:33]}  c3 {[%clk 0:00:32]} 25. Qxg7# {[%clk 0:00:32]} 1-0

[Event "December 5 Early 2023"]
[Site "https://www.chess.com"]
[Date "2023.12.05"]
[Round "3"]
[White "Rietze, Clemens, Dr."]
[Black "Zamorano, Jorge"]
[Result "0-1"]
[Board "87"]
[TimeControl "180+1"]
[WhiteFideId "24620351"]
[BlackFideId "173770"]
[WhiteElo "2517"]
[BlackElo "2780"]
[WhiteTeam "GER"]
[BlackTeam "ARG"]
[WhiteClock "0:00:15"]
[BlackClock "0:00:04"]

1. d4 {[%clk 0:02:58]}  d5 {[%clk 0:02:18]} 2. c4 {[%clk 0:02:57]}  e6 {[%clk 0:02:17]} 3. Nf3 {[%clk 0:02:57]}  Nf6 {[%clk 0:02:17]} 4. g3 {[%clk 0:02:58]}  c5 {[%clk 0:02:13]} 5. cxd5 {[%clk 0:02:54]}  exd5 {[%clk 0:02:12]} 6. Bg2 {[%clk 0:02:54]}  Nc6 {[%clk 0:02:13]} 7. O-O {[%clk 0:02:54]}  Be7 {[%clk 0:02:12]} 8. Nc3 {[%clk 0:02:54]}  O-O {[%clk 0:02:11]} 9. Bg5 {[%clk 0:02:55]}  cxd4 {[%clk 0:01:56]} 10. Nxd4 {[%clk 0:02:51]}  Be6 {[%clk 0:01:56]} 11. Qa4 {[%clk 0:02:25]}  Qb6 {[%clk 0:01:42]} 12. Nxe6 {[%clk 0:01:47]}  fxe6 {[%clk 0:01:41]} 13. Qb5 {[%clk 0:01:47]}  h6 {[%clk 0:01:32]} 14. Bd2 {[%clk 0:01:40]}  Bc5 {[%clk 0:01:19]} 15. e3 {[%clk 0:01:36]}  Ne5 {[%clk 0:01:08]} 16. b3 {[%clk 0:01:28]}  a6 {[%clk 0:01:00]} 17. Qe2 {[%clk 0:01:23]}  Bb4 {[%clk 0:00:59]} 18. a3 {[%clk 0:01:17]}  Be7 {[%clk 0:00:43]} 19. Rfb1 {[%clk 0:01:10]}  Rac8 {[%clk 0:00:43]} 20. Na4 {[%clk 0:01:06]}  Qb5 {[%clk 0:00:42]} 21. Bf1 {[%clk 0:00:51]}  Ne4 {[%clk 0:00:34]} 22. Be1 {[%clk 0:00:41]}  Nf3+ {[%clk 0:00:29]} 23. Kh1 {[%clk 0:00:41]}  Qxe2 {[%clk 0:00:26]} 24. Bxe2 {[%clk 0:00:41]}  Nxe1 {[%clk 0:00:26]} 25. Rxe1 {[%clk 0:00:42]}  b5 {[%clk 0:00:20]} 26. Nb2 {[%clk 0:00:32]}  Nxf2+ {[%clk 0:00:11]} 27. Kg1 {[%clk 0:00:27]}  Ne4 {[%clk 0:00:10]} 28. Nd3 {[%clk 0:00:24]}  Rc3 {[%clk 0:00:10]} 29. b4 {[%clk 0:00:23]}  Bg5 {[%clk 0:00:08]} 30. Bf1 {[%clk 0:00:22]}  Rf3 {[%clk 0:00:04]} 31. Nf4 {[%clk 0:00:21]}  Rfxe3 {[%clk 0:00:04]} 32. Nxe6 {[%clk 0:00:20]}  Bf6 {[%clk 0:00:02]} 33. Rad1 {[%clk 0:00:18]}  Rxe1 {[%clk 0:00:02]} 34. Rxe1 {[%clk 0:00:19]}  Nd6 {[%clk 0:00:02]} 35. Kh1 {[%clk 0:00:18]}  Rxa3 {[%clk 0:00:02]} 36. Nc5 {[%clk 0:00:18]}  Ne4 {[%clk 0:00:03]} 37. Nd7 {[%clk 0:00:18]}  Rb3 {[%clk 0:00:02]} 38. Nb6 {[%clk 0:00:16]}  Rb2 {[%clk 0:00:03]} 39. Nxd5 {[%clk 0:00:16]}  Nf2+ {[%clk 0:00:03]} 40. Kg1 {[%clk 0:00:17]}  Bd4 {[%clk 0:00:04]} 41. Ne3 {[%clk 0:00:17]}  Ng4 {[%clk 0:00:02]} 42. Kh1 {[%clk 0:00:17]}  Bxe3 {[%clk 0:00:03]} 43. Bg2 {[%clk 0:00:17]}  Nf2+ {[%clk 0:00:03]} 44. Kg1 {[%clk 0:00:17]}  Ng4+ {[%clk 0:00:03]} 45. Kh1 {[%clk 0:00:18]}  Nf2+ {[%clk 0:00:04]} 46. Kg1 {[%clk 0:00:18]}  Bb6 {[%clk 0:00:04]} 47. Bf1 {[%clk 0:00:18]}  Nd3+ {[%clk 0:00:04]} 48. Kh1 {[%clk 0:00:18]}  Nxe1 {[%clk 0:00:04]} 49. Bxb5 {[%clk 0:00:17]}  axb5 {[%clk 0:00:03]} 50. h4 {[%clk 0:00:15]}  Nf3 {[%clk 0:00:04]} 0-1

[Event "December 5 Early 2023"]
[Site "https://www.chess.com"]
[Date "2023.12.05"]
[Round "3"]
[White "Eugene, Floryan"]
[Black "Urazayev, Arystanbek"]
[Result "1-0"]
[Board "89"]
[TimeControl "180+1"]
[WhiteFideId "20694784"]
[BlackFideId "13709810"]
[WhiteElo "2510"]
[BlackElo "2771"]
[WhiteTeam "FRA"]
[BlackTeam "KAZ"]
[WhiteClock "0:01:13"]
[BlackClock "0:00:00"]

1. d4 {[%clk 0:03:00]}  Nf6 {[%clk 0:02:59]} 2. c4 {[%clk 0:03:01]}  g6 {[%clk 0:02:59]} 3. Nc3 {[%clk 0:03:00]}  Bg7 {[%clk 0:02:59]} 4. e4 {[%clk 0:02:59]}  d6 {[%clk 0:03:00]} 5. Nf3 {[%clk 0:02:59]}  O-O {[%clk 0:03:00]} 6. Be2 {[%clk 0:03:00]}  e5 {[%clk 0:03:01]} 7. O-O {[%clk 0:03:01]}  exd4 {[%clk 0:03:01]} 8. Nxd4 {[%clk 0:03:00]}  Re8 {[%clk 0:03:02]} 9. f3 {[%clk 0:03:00]}  Nc6 {[%clk 0:03:02]} 10. Be3 {[%clk 0:02:46]}  Nh5 {[%clk 0:03:02]} 11. Nc2 {[%clk 0:02:44]}  f5 {[%clk 0:02:53]} 12. Re1 {[%clk 0:02:36]}  f4 {[%clk 0:02:51]} 13. Bf2 {[%clk 0:02:36]}  Be5 {[%clk 0:02:52]} 14. Nd5 {[%clk 0:02:31]}  Be6 {[%clk 0:02:49]} 15. b4 {[%clk 0:02:26]}  Ne7 {[%clk 0:02:36]} 16. Nd4 {[%clk 0:02:21]}  Bf7 {[%clk 0:02:33]} 17. b5 {[%clk 0:02:16]}  Rc8 {[%clk 0:02:28]} 18. Bh4 {[%clk 0:02:05]}  Bxd5 {[%clk 0:02:25]} 19. cxd5 {[%clk 0:02:04]}  Qd7 {[%clk 0:02:24]} 20. Rc1 {[%clk 0:02:00]}  Ng7 {[%clk 0:02:23]} 21. Qd2 {[%clk 0:01:46]}  h6 {[%clk 0:02:23]} 22. Red1 {[%clk 0:01:42]}  g5 {[%clk 0:02:23]} 23. Bf2 {[%clk 0:01:43]}  h5 {[%clk 0:02:02]} 24. a4 {[%clk 0:01:42]}  g4 {[%clk 0:01:51]} 25. a5 {[%clk 0:01:39]}  Ng6 {[%clk 0:01:30]} 26. a6 {[%clk 0:01:25]}  b6 {[%clk 0:01:30]} 27. Nc6 {[%clk 0:01:23]}  Ra8 {[%clk 0:01:05]} 28. Bd4 {[%clk 0:01:22]}  g3 {[%clk 0:01:04]} 29. h3 {[%clk 0:01:14]}  Bxd4+ {[%clk 0:00:00]} 30. Qxd4 {[%clk 0:01:13]} 1-0

[Event "December 5 Early 2023"]
[Site "https://www.chess.com"]
[Date "2023.12.05"]
[Round "3"]
[White "Rodriguez Fontecha, Marcos"]
[Black "Matinian, Nikita"]
[Result "0-1"]
[Board "92"]
[TimeControl "180+1"]
[WhiteFideId "2256576"]
[BlackFideId "24129100"]
[WhiteElo "2508"]
[BlackElo "2723"]
[WhiteTeam "ESP"]
[BlackTeam "FID"]
[WhiteClock "0:00:00"]
[BlackClock "0:01:11"]

1. d4 {[%clk 0:03:00]}  Nf6 {[%clk 0:02:56]} 2. Nf3 {[%clk 0:03:01]}  g6 {[%clk 0:02:55]} 3. Bf4 {[%clk 0:03:01]}  Bg7 {[%clk 0:02:56]} 4. Nc3 {[%clk 0:03:01]}  d5 {[%clk 0:02:56]} 5. Qd2 {[%clk 0:03:01]}  O-O {[%clk 0:02:51]} 6. Bh6 {[%clk 0:03:01]}  c5 {[%clk 0:02:50]} 7. Bxg7 {[%clk 0:03:00]}  Kxg7 {[%clk 0:02:50]} 8. e3 {[%clk 0:03:01]}  Nc6 {[%clk 0:02:50]} 9. Be2 {[%clk 0:03:00]}  Bg4 {[%clk 0:02:46]} 10. O-O {[%clk 0:02:54]}  Rc8 {[%clk 0:02:45]} 11. dxc5 {[%clk 0:02:46]}  Qa5 {[%clk 0:02:45]} 12. a3 {[%clk 0:02:37]}  Qxc5 {[%clk 0:02:42]} 13. Rad1 {[%clk 0:02:36]}  Rfd8 {[%clk 0:02:41]} 14. Nd4 {[%clk 0:02:33]}  Ne5 {[%clk 0:02:34]} 15. Nb3 {[%clk 0:02:14]}  Qc7 {[%clk 0:02:33]} 16. Bxg4 {[%clk 0:02:12]}  Nfxg4 {[%clk 0:02:29]} 17. f4 {[%clk 0:02:07]}  Nc4 {[%clk 0:02:26]} 18. Qd4+ {[%clk 0:02:07]}  f6 {[%clk 0:02:12]} 19. Nxd5 {[%clk 0:02:03]}  Rxd5 {[%clk 0:02:08]} 20. Qxd5 {[%clk 0:02:03]}  Ncxe3 {[%clk 0:02:07]} 21. Qd7 {[%clk 0:01:56]}  Nxd1 {[%clk 0:01:55]} 22. Qxc7 {[%clk 0:00:35]}  Rxc7 {[%clk 0:01:52]} 23. Rxd1 {[%clk 0:00:35]}  Rxc2 {[%clk 0:01:50]} 24. h3 {[%clk 0:00:33]}  Rxg2+ {[%clk 0:01:49]} 25. Kxg2 {[%clk 0:00:26]}  Ne3+ {[%clk 0:01:49]} 26. Kf3 {[%clk 0:00:27]}  Nxd1 {[%clk 0:01:50]} 27. Na5 {[%clk 0:00:20]}  Nxb2 {[%clk 0:01:47]} 28. Nxb7 {[%clk 0:00:19]}  Nc4 {[%clk 0:01:47]} 29. a4 {[%clk 0:00:19]}  a5 {[%clk 0:01:47]} 30. Ke4 {[%clk 0:00:17]}  Nb6 {[%clk 0:01:46]} 31. Nc5 {[%clk 0:00:16]}  h5 {[%clk 0:01:43]} 32. f5 {[%clk 0:00:15]}  g5 {[%clk 0:01:43]} 33. Kd4 {[%clk 0:00:12]}  Kh6 {[%clk 0:01:40]} 34. Nb3 {[%clk 0:00:08]}  Nxa4 {[%clk 0:01:39]} 35. Nxa5 {[%clk 0:00:09]}  g4 {[%clk 0:01:39]} 36. h4 {[%clk 0:00:07]}  Nc3 {[%clk 0:01:20]} 37. Nc6 {[%clk 0:00:06]}  g3 {[%clk 0:01:15]} 38. Ke3 {[%clk 0:00:06]}  Nd5+ {[%clk 0:01:12]} 39. Kf3 {[%clk 0:00:06]}  g2 {[%clk 0:01:12]} 40. Kxg2 {[%clk 0:00:06]}  Ne3+ {[%clk 0:01:13]} 41. Kf3 {[%clk 0:00:06]}  Nxf5 {[%clk 0:01:13]} 42. Kf4 {[%clk 0:00:07]}  Kg6 {[%clk 0:01:12]} 43. Nd8 {[%clk 0:00:07]}  e5+ {[%clk 0:01:12]} 44. Ke4 {[%clk 0:00:05]}  Nxh4 {[%clk 0:01:12]} 45. Nc6 {[%clk 0:00:00]}  Nf5 {[%clk 0:01:11]} 0-1